Cogmind - Beta 15 @@@ ROGUE MODE // 2025.08.19 @ 20:34:07 Player: beans Result: Destroyed by G-34 Mercenary with Small Laser Performance ------------- Evolutions (0) 0 Regions Visited (2) 400 Robots Destroyed (12) 60 Value Destroyed (205) 205 Prototype IDs (0) 0 Alien Tech Used (0) 0 Bonus (0) 0 TOTAL SCORE: 665 Bonus ------- None Cogmind --------- Core Integrity 0/250 Matter 281/300 Energy 100/100 System Corruption 0% Temperature Cool (6) Movement Core (50) Location -10/Mines Parts ------- > --- POWER (1) -------- (None) > --- PROPULSION (2) --- (None) > --- UTILITY (2) ------ (None) > --- WEAPON (2) ------- Light Assault Rifle Light Assault Rifle > --- INVENTORY (5) ---- Light Assault Rifle Peak State ------------ > --- POWER ------------ Ion Engine > --- PROPULSION ------- Aluminum Leg Aluminum Leg > --- UTILITY ---------- Heat Sink > --- WEAPON ----------- Small Laser Light Assault Rifle > --- INVENTORY -------- Light Assault Rifle [Rating: 6] Favorites ----------- Power Ion Engine Engine Ion Engine Propulsion Aluminum Leg Leg Aluminum Leg Utility Heat Sink Device Heat Sink Weapon Light Assault Rifle Energy Gun Small Laser Ballistic Gun Light Assault Rifle Build | -11 -10 -10 ------- Run | Yrd Mat Min Slots Evolved . | . . . Power . | . . . Propulsion . | . . . Utility . | . . . Weapon . | . . . Parts Attached 8 | 5 2 1 Power 1 | 1 . . Engine 1 | 1 . . Core . | . . . Reactor . | . . . Propulsion 2 | 2 . . Treads . | . . . Leg 2 | 2 . . Wheel . | . . . Hover . | . . . Flight . | . . . Utility 1 | . 1 . Device 1 | . 1 . Storage . | . . . Processor . | . . . Hackware . | . . . Protection . | . . . Artifact . | . . . Weapon 4 | 2 1 1 Energy Gun 1 | . 1 . Energy Cannon . | . . . Ballistic Gun 3 | 2 . 1 Ballistic Cannon . | . . . Launcher . | . . . Special Weapon . | . . . Impact Weapon . | . . . Slashing Weapon . | . . . Piercing Weapon . | . . . Special Melee Weapon . | . . . Unidentified Prototypes . | . . . Parts Lost 5 | . 2 3 Power 1 | . 1 . Propulsion 2 | . . 2 Utility 1 | . 1 . Weapon 1 | . . 1 Highest Loss Streak 2 | . 2 2 To Critical Strikes . | . . . Average Backups . | . . 1 Power . | . . . Propulsion . | . . . Utility . | . . . Weapon . | . . 1 Tool/Special . | . . . Unused Backups . | . . . Power . | . . . Propulsion . | . . . Utility . | . . . Weapon . | . . . Tool/Special . | . . . Average Slot Usage (%) 58 | . 70 42 Engine 5 | . 10 . Leg 22 | . 28 14 Device 1 | . 2 . Energy Gun 8 | . 4 13 Ballistic Gun 19 | . 23 14 Peak Build Rating 6 | 5 6 4 Average Rating 3 | 3 4 2 On Entrance 3 | . 5 4 Naked Turns . | . . . Heaviest Build 8 | 7 8 2 Greatest Support 20 | 20 20 20 Greatest Overweight (x) . | . . . Average Overweight (x) . | . . . Largest Inventory Capacity 5 | 5 5 5 Average Capacity 5 | 5 5 5 Most Carried 5 | 5 2 2 Average Carried . | . . 1 Final Capacity 5 | 5 5 5 Final Carried 1 | . 1 1 Class Distribution -------------------- 100% | Mutant Dominant Class ---------------- Mutant | -10/Materials Mutant | -10/Mines Resources | -11 -10 -10 ----------- Run | Yrd Mat Min Matter Collected 296 | 164 110 22 Remotely . | . . . Salvage Created 283 | . 185 98 Parts 23 | . 16 7 Haulers Intercepted . | . . . Recyclers Shooed . | . . . Parts Field Recycled . | . . . Retrieved Matter . | . . . Parts Self-Destructed . | . . . Prevented . | . . . Kills | -11 -10 -10 ------- Run | Yrd Mat Min Combat Hostiles Destroyed 12 | . 8 4 Guns 12 | . 8 4 Classes Destroyed 2 | . 2 . Swarmer 9 | . 6 3 Grunt 3 | . 2 1 Best Kill Streak 6 | . 6 3 Combat Bots Only 6 | . 6 3 Max Kills in Single Turn 1 | . 1 1 Gunslinging . | . . . Exploded . | . . . Melee . | . . . Uniques/NPCs Destroyed . | . . . Combat | -11 -10 -10 -------- Run | Yrd Mat Min Hostile Shots Fired 107 | . 72 35 Missed 32 | . 24 8 Hits 75 | . 48 27 Projectile 75 | . 48 27 Damage Taken 692 | . 408 284 Core 253 | . 107 146 Absorbed by Shields . | . . . Core Remaining (%) 100 | 100 . . Volleys Fired 44 | . 26 18 Largest 2 | . 2 2 Hottest 60 | . 60 60 Shots Fired 86 | . 52 34 Gun 86 | . 52 34 Cannon . | . . . Launcher . | . . . Special . | . . . Kinetic 57 | . 35 22 Thermal 29 | . 17 12 Explosive . | . . . Electromagnetic . | . . . Robot Hit Streak 7 | . 7 5 Robot Miss Streak 6 | . 6 2 Penetration Max . | . . . Secondary Targets 3 | . 1 2 Max Gunslinging Chain 1 | . 1 1 Shots Hit Robots 45 | . 26 19 Core Hits 19 | . 11 8 Critical Kills . | . . . Critical Parts Destroyed . | . . . Critical Strikes . | . . . Melee Attacks . | . . . Impact . | . . . Slashing . | . . . Piercing . | . . . Sneak Attacks . | . . . Combat Hostiles . | . . . Follow-up Attacks . | . . . Damage Inflicted 414 | . 244 170 Guns 413 | . 243 170 Cannons . | . . . Explosions . | . . . Melee . | . . . Ramming 1 | . 1 . Kinetic 258 | . 155 103 Thermal 155 | . 88 67 Explosive . | . . . Electromagnetic . | . . . Impact . | . . . Slashing . | . . . Piercing . | . . . Highest Corruption . | . . . Average Corruption . | . . . Corruption Purged . | . . . Corruption Blocked . | . . . Overload Shots . | . . . Overflow Damage . | . . . Projectiles . | . . . Explosions . | . . . Melee . | . . . Knockbacks . | . . . Impact . | . . . Kinetic . | . . . Secondary . | . . . Self-Inflicted Damage . | . . . Shots . | . . . Rammed . | . . . Targets Rammed 1 | . 1 . Kicked 1 | . 1 . Crushed . | . . . Highest Temperature 26 | . 20 26 Average Temperature 10 | . 9 10 Received Heat Transfer 150 | . 48 102 Siege Activations . | . . . Martial Activations . | . . . Shielding Activations . | . . . Robots Disrupted . | . . . Combat Hostiles . | . . . Robots Corrupted . | . . . Combat Hostiles . | . . . Parts Fried . | . . . Impact Corruptions . | . . . Robots Melted . | . . . Combat Hostiles . | . . . Parts Melted 1 | . 1 . Heat Transferred 350 | . 200 150 Parts Sabotaged . | . . . Parts Stolen . | . . . Parts Stripped . | . . . Power Chain Reactions . | . . . Alert | -11 -10 -10 ------- Run | Yrd Mat Min Maximum Alert Level . | . . . Low Security (%) 100 | 100 100 100 Level 1 . | . . . Level 2 . | . . . Level 3 . | . . . Level 4 . | . . . Level 5 . | . . . High Security . | . . . Max Security . | . . . Peak Influence 140 | . 140 105 Initial 50 | . . 50 Average 45 | . 36 69 Influence Increases 305 | . 190 115 Destroy 0b10 Robot/C 240 | . 160 80 Destroy Leader 50 | . 30 20 Lose Combat Pursuer 15 | . . 15 Influence Decreases 250 | . 60 190 Entered New Map 80 | . . 80 Time Decay 120 | . 40 80 Lost Part 50 | . 20 30 Squads Dispatched 1 | . 1 . Investigation . | . . . Extermination . | . . . Reinforcement 1 | . 1 . Assault . | . . . Garrison . | . . . Intercept . | . . . Searches Triggered . | . . . Construction Impeded . | . . . Haulers Reinforced . | . . . Active Scanning Responses . | . . . Cargo Convoy Interrupts . | . . . Stealth | -11 -10 -10 --------- Run | Yrd Mat Min Distress Signals . | . . . Communications Jammed . | . . . Distress Signals . | . . . Times Spotted 15 | . 9 6 Peak Tracking Total 6 | . 6 3 Tactical Retreats 1 | . . 1 Traps | -11 -10 -10 ------- Run | Yrd Mat Min Traps Triggered . | . . . Indirectly . | . . . Trap Hack Attempts . | . . . Triggered . | . . . Disarmed . | . . . Reprogrammed . | . . . Reused . | . . . Traps Extracted . | . . . Installed . | . . . Triggered . | . . . Machines | -11 -10 -10 ---------- Run | Yrd Mat Min Machines Disabled . | . . . Max in Single Turn . | . . . Machines Repaired . | . . . Machines Dismantled . | . . . Machines Sabotaged . | . . . Overloaded Fab Kills . | . . . Hacking | -11 -10 -10 --------- Run | Yrd Mat Min Machines Accessed . | . . . Terminals . | . . . Fabricators . | . . . Repair Stations . | . . . Recycling Units . | . . . Scanalyzers . | . . . Garrison Access . | . . . Total Hacks . | . . . Successful . | . . . Failed . | . . . Catastrophic . | . . . Database Lockouts . | . . . Manual . | . . . Terminals . | . . . Fabricators . | . . . Repair Stations . | . . . Recycling Units . | . . . Scanalyzers . | . . . Garrison Access . | . . . Terminal Hacks . | . . . Fabricator Hacks . | . . . Repair Station Hacks . | . . . Recycling Unit Hacks . | . . . Scanalyzer . | . . . Garrison Access Hacks . | . . . Unauthorized Hacks . | . . . Terminals . | . . . Fabricators . | . . . Repair Stations . | . . . Recycling Units . | . . . Scanalyzers . | . . . Garrison Access . | . . . Data Cores Recovered . | . . . Used . | . . . Hacking Detections . | . . . Full Trace Events . | . . . Feedback Events . | . . . Feedback Blocked . | . . . Robot Schematics Acquired . | . . . Robots Built . | . . . Authchips . | . . . Time . | . . . Total Robot Build Rating . | . . . Part Schematics Acquired . | . . . Parts Built . | . . . Authchips . | . . . Time . | . . . Total Part Build Rating . | . . . Parts Repaired . | . . . Time . | . . . Parts Recycled . | . . . Recycled Matter . | . . . Retrieved Matter . | . . . Retrieved Components . | . . . Parts Scanalyzed . | . . . Part Schematics Acquired . | . . . Parts Damaged . | . . . Bothacking | -11 -10 -10 ------------ Run | Yrd Mat Min Used RIF Installer . | . . . Robots Hacked . | . . . Non-combat . | . . . Combat . | . . . Robot Hacks Applied . | . . . Relay Couplers Released . | . . . Fabnet Peak Effective % . | . . . Robots Rewired . | . . . Allies Hacked . | . . . Hacks Repelled . | . . . Allies | -11 -10 -10 -------- Run | Yrd Mat Min Total Allies . | . . . Largest Group . | . . . Highest-Rated Group . | . . . Highest-Rated Ally . | . . . Total Orders . | . . . Ally Attacks . | . . . Total Damage . | . . . Kills . | . . . Allies Corrupted . | . . . Allies Melted . | . . . Intel | -11 -10 -10 ------- Run | Yrd Mat Min Active Infowar (turns) . | . . . Robot Analysis Total . | . . . Derelict Logs Recovered . | . . . Drone Launches . | . . . Drone Recoveries . | . . . Exploration | -11 -10 -10 ------------- Run | Yrd Mat Min Turns Passed 438 | 55 204 179 Spaces Moved 237 | 52 76 109 Core 26 | 24 . 2 Treads . | . . . Legs 211 | 28 76 107 Wheels . | . . . Hover . | . . . Flight . | . . . Fastest Speed 50 | 50 120 50 Average Speed 112 | 87 120 118 Slowest Speed 120 | 120 120 120 Overloaded Moves . | . . . Propulsion Burnouts . | . . . Robots Hopped . | . . . Potential Cave-ins . | . . . Cave-ins Triggered . | . . . Exploration Rate (%) 18 | 3 25 28 Regions Visited 2 Branch Regions 1 Pre-discovered Areas . | . . . Known Exits Taken . | . . . Unknown Exits Taken 2 | 1 1 . Scrap Searched . | . . . Spaces Dug . | . . . Terrain Destroyed . | . . . Melee . | . . . Projectile . | . . . AOE . | . . . Terrain Rammed . | . . . Walls Destroyed . | . . . Machines Disabled . | . . . Actions | -11 -10 -10 --------- Run | Yrd Mat Min Total 333 | 61 143 129 Wait 37 | . 37 . Move 235 | 51 75 109 Hop . | . . . Pick Up 8 | 5 2 1 Fast Attach . | . . . Attach 7 | 5 1 1 Detach . | . . . Swap 1 | . 1 . Drop . | . . . Fire 44 | . 26 18 Melee . | . . . Ram . | . . . Kick 1 | . 1 . Crush . | . . . Escape Stasis . | . . . Rewire . | . . . Trap . | . . . Miscellaneous . | . . . Route ------- -11/Scrapyard -10/Materials -10/Mines History --------- Turn | Location | Event 4 | -11/Scrapyard | Discovered new exit (range 14) 56 | -11/Scrapyard | Entered Materials 186 | -10/Materials | Discovered new exit (range 16) 260 | -10/Materials | Entered Mines 290 | -10/Mines | Core integrity fell below 50% 315 | -10/Mines | Build established: Mutant 426 | -10/Mines | Core integrity fell below 20% 439 | -10/Mines | Destroyed by G-34 Mercenary with Small Laser Last Messages --------------- K-01 Serf collects debris. R-06 Scavenger collects Flight Unit. K-01 Serf collects debris. Flight Unit melted. S-10 Pest destroyed. K-01 Serf collects debris. LOCATION=UNKNOWN GOAL=ESCAPE K-01 Serf collects debris. Aluminum Leg destroyed. S-10 Pest destroyed. Switching to secondary target: S-10 Pest. S-10 Pest destroyed. Acquired 22 matter. Acquired Lgt. Assault Rifle. K-01 Serf collects debris. Aluminum Leg destroyed. Sml. Laser destroyed. G-47 Trooper destroyed. Switching to secondary target: G-34 Mercenary. Map ----- +----------------------------------------------------+ | | | | | | | | | ???????????????????????????????????????????????? | | ???????????????????????????????????????????????? | | ???????????????????????????????????????????????? | | ?????????????????????????????????#########?????? | | ?????????????????????????????????# #?????? | | ?????????????????????????????????# #?????? | | ?????????????????????????????????# =####### | | ?????????????????????????????????# *% %= | | ?????????????????????????????????# [###### | | ?????????????????????????????????# #????# | | ?????????????????????????????????###### ##????# | | ??????????????????????????????????????# #?????# | | ??????????????????????????????????????# #?????# | | ????????????????????????????????????? #????## | | ??????????????????????????????????? ####????# | | ????????????????????????????????? ????????## | | ??????????????????????????????? ????????## | | ??????????????????????????????# ?????????## | | ????????????????????????#####?# ??????????# | | ???????????????????????## ###???????????# | | ???????????????######### #####????????## | | ????????# g [ @ ##????????## | | ????????# *% ## #?????????## | | ???????????################# #?????????## | | ???????????????????????????## ##????????## | | ????????????????????????????# ##????????# | | ????????????????????????????## ######???# | | ????????????????????????????## ##??## | | ????????????????????????????# ##??## | | ???????????????????????????# ## #???### | | ???????????????????????????# #### ##????? | | ???????????????????????????# ##?## ##???? | | ???????????????????????????# ##??# ###?? | | ???????????????????????????## ###???# ### | | ????????????????????????????####?????## | | ??????????????????????????????????????### ## | | ????????????????????????????????????????##### #? | | ????????????????????????????????????????????###? | | ???????????????????????????????????????????????? | | ???????????????????????????????????????????????? | | ???????????????????????????????????????????????? | | ???????????????????????????????????????????????? | | ???????????????????????????????????????????????? | | ???????????????????????????????????????????????? | | ???????????????????????????????????????????????? | | ???????????????????????????????????????????????? | +----------------------------------------------------+ Best States ------------- Heat Dissipation 35 Energy Generation 10 Energy Capacity 250 Matter Stores 300 Matter Capacity 300 Sight Range 16 Terrain Scan Density 10 Evasion (%) 55 Item Schematics ----------------- None Robot Schematics ------------------ None Fabricated ------------ Nothing Repaired ---------- Nothing Alien Tech Used ----------------- None Achievements -------------- None Challenges ------------ None Game ------ Seed ReactionDirectedHammer Manual? 0 Play Time 00:03:18 Cumulative 96.4 hours Start 2025.08.19 @ 20:31:40 End 2025.08.19 @ 20:34:07 Sessions 1 Manual Loads 0 Difficulty Rogue Special Mode None Game No. 374 Rogue 374 Adventurer 0 Explorer 0 Win Type - Total 0 Types 0/0/0/0/0/0/0/0/0/0 Lore% 43 Gallery% 40 Achievement% 30 Wizard Run 0 Options --------- Layout 2 ASCII 0 Keyboard 0 Movement Mouse Keybinds 0 Fullscreen 2 Font 24/Smallcaps Map View 50x44 Zoom Use 0% Tactical HUD 0 Map Filters NONE Filters NONE Steam 1 RUN: 276210b0-87ef-4832-b387-af7f03953bf9